bitfinex/quotes_ETHUSD_20250518
["timestamp","ask_amount","ask_price","bid_price","bid_amount"]
[1747600759265,4.17781473,2393.6,2393.1,10.485]
[1747600759266,10.465,2393.6,2393.1,10.485]
[1747600759472,4.17817017,2393.4,2393.1,10.485]
[1747600759666,10.465,2393.6,2393.1,10.485]
[1747600759896,10.465,2393.6,2393.0,18.042]
[1747600760097,4.1783207,2393.4,2393.0,28.527]
[1747600760274,14.64227761,2393.4,2393.0,28.527]
[1747600760480,4.17855798,2393.2,2393.0,28.527]
[1747600760795,0.7772,2393.8,2393.0,18.042]
[1747600761000,14.64089824,2393.6,2393.1,10.485]
[1747600761184,4.95471809,2393.8,2393.1,10.485]
[1747600761389,4.17780907,2393.6,2393.1,14.66355641]
[1747600761703,4.17783482,2393.6,2393.1,10.485]
[1747600761919,10.463,2393.7,2393.0,18.042]
[1747600762240,0.7787,2393.3,2392.4,30.2987]
[1747600762516,5.19760595,2393.2,2392.5,0.04178802]
[1747600762818,14.64074507,2393.1,2392.0,0.7804]
[1747600763097,10.461,2393.0,2392.5,4.1796226]
[1747600763297,10.461,2393.0,2392.5,4.17962818]
[1747600763506,10.461,2393.0,2392.5,4.17961765]
[1747600763701,4.1789474,2393.0,2392.4,4.17978617]
[1747600763872,4.17883186,2393.1,2392.6,4.17949676]
[1747600764069,0.7787,2393.3,2392.9,4.1789393]
[1747600764270,0.7787,2393.7,2393.0,10.486]
[1747600764571,0.7787,2393.7,2393.0,14.66479345]
[1747600764805,0.7787,2393.7,2393.2,4.17835799]
[1747600765386,0.7787,2393.7,2393.1,4.17865599]
[1747600765714,0.7787,2393.7,2393.2,4.17847475]
[1747600766307,11.2377,2393.7,2393.0,10.486]
[1747600766490,0.7787,2393.7,2393.1,4.17868037]
[1747600766690,11.2377,2393.7,2393.0,13.37068816]
[1747600766898,11.2377,2393.7,2393.3,4.17826882]
[1747600767095,0.7787,2393.7,2393.0,17.54939817]
[1747600767295,0.7787,2393.7,2393.3,4.17815971]
[1747600767608,0.7787,2393.7,2393.3,4.17831953]
[1747600768005,0.7787,2393.7,2393.0,10.485]
[1747600768209,4.17838044,2393.3,2393.0,10.485]
[1747600768393,4.17868037,2393.1,2392.8,18.043]
[1747600768801,4.17868037,2393.1,2391.8,10.456]
[1747600768802,4.17958826,2392.6,2392.1,15.16745993]
[1747600769001,14.63585321,2392.5,2392.1,10.98711927]
[1747600769219,9.37785843,2392.2,2392.1,0.50211927]
[1747600769402,24.41945343,2392.2,2392.1,0.50211927]
[1747600769578,20.41352243,2392.2,2392.1,0.50211927]
[1747600769779,18.18295843,2392.2,2392.1,0.50211927]
[1747600770316,4.985702,2392.0,2391.9,0.66695712]
[1747600770515,0.8051,2393.3,2392.1,0.8122]
[1747600770815,0.30672673,2393.8,2393.1,4.99079399]
[1747600770978,0.30672673,2393.8,2393.1,0.8122]
[1747600771181,10.454,2394.1,2393.5,4.17783591]
[1747600771486,0.8051,2393.9,2393.0,18.042]
[1747600771686,4.17788322,2393.6,2393.0,32.70585486]
[1747600771930,14.63099325,2393.5,2393.0,28.527]
[1747600772133,4.17834018,2393.3,2393.0,28.527]
[1747600772294,0.8051,2393.2,2392.1,19.8137]
[1747600772609,14.63178564,2393.1,2392.5,4.17958838]
[1747600772812,4.17905929,2392.9,2392.2,12.51559]
[1747600773011,4.17886904,2393.0,2392.4,4.1798065]
[1747600773615,0.8051,2393.2,2392.7,4.17937424]
[1747600773815,4.17781145,2393.6,2392.9,4.17902962]
[1747600774019,14.62441379,2393.5,2393.0,10.453]
[1747600774183,10.44641985,2393.5,2393.0,10.453]
[1747600774521,10.452,2393.4,2393.0,10.453]
[1747600774681,10.452,2393.9,2393.1,4.72865433]
[1747600775013,10.452,2393.9,2393.5,4.17795759]
[1747600775726,10.452,2393.9,2393.0,15.67712931]
[1747600775727,10.452,2393.9,2393.0,11.4983]
[1747600775907,0.7771,2393.8,2392.9,18.042]
[1747600776113,4.17808464,2393.5,2392.9,22.22099936]
[1747600776283,10.451,2393.4,2392.9,18.042]
[1747600776485,14.62917682,2393.4,2392.9,22.22094699]
[1747600776722,10.451,2393.4,2392.9,18.042]
[1747600776927,10.451,2393.4,2393.0,4.17883664]
[1747600777109,10.451,2393.4,2392.9,22.2209452]
[1747600777311,4.17664309,2394.3,2393.3,4.17815786]
[1747600777511,4.1771245,2394.0,2393.4,10.453]
[1747600777717,4.17773258,2393.7,2393.1,4.96198691]
[1747600777906,4.17773258,2393.7,2392.9,25.9061988]
[1747600777907,10.45,2393.6,2393.2,10.453]
[1747600778102,0.7771,2394.1,2393.2,10.453]
[1747600778343,0.7771,2394.5,2393.5,4.96138203]
[1747600778569,14.6265041,2394.4,2393.8,4.17733604]
[1747600778691,10.45,2394.4,2393.7,10.454]
[1747600778896,10.45,2394.4,2393.8,4.17740724]
[1747600779108,14.62648813,2394.4,2393.9,4.17727081]
[1747600779394,0.7771,2394.5,2393.8,4.17740465]
[1747600779593,4.17668986,2394.3,2393.7,14.63159841]
[1747600779792,4.17668986,2394.3,2393.7,14.6314639]
[1747600779997,10.449,2394.2,2393.8,4.17745673]
[1747600780194,0.7771,2394.5,2393.7,10.454]
[1747600780395,10.449,2394.6,2393.7,10.454]
[1747600780595,10.448,2394.6,2393.7,10.454]
[1747600780795,4.17503382,2395.2,2393.8,4.17742542]
[1747600781027,4.17582191,2394.8,2394.2,4.1766645]
[1747600781227,4.17591721,2394.7,2394.2,14.6296645]
[1747600781632,10.448,2394.8,2394.2,10.453]
[1747600781932,14.6227464,2394.8,2394.3,4.17649585]
[1747600782126,14.6217464,2394.8,2394.2,10.453]
[1747600782296,4.17543977,2395.0,2394.2,10.453]
[1747600782500,4.17572747,2394.8,2394.3,4.1764946]
[1747600783197,4.17597936,2394.7,2394.2,10.453]
[1747600783397,4.17597936,2394.7,2394.2,14.62967491]
[1747600783602,4.17579604,2394.8,2394.2,14.62967491]
[1747600783804,14.62156918,2394.9,2394.3,10.451]
[1747600784008,4.17637392,2394.5,2394.3,10.451]
[1747600784226,10.444,2394.4,2394.3,10.451]
[1747600784436,4.17586306,2394.8,2394.3,10.451]
[1747600784597,10.443,2394.4,2394.3,10.451]
[1747600785000,4.17627114,2394.5,2394.3,10.451]
[1747600785200,4.17641162,2394.4,2394.3,10.451]
[1747600785410,4.17693496,2394.1,2394.0,18.04]
[1747600785607,10.442,2394.1,2393.8,4.17745843]
[1747600785841,10.442,2394.1,2393.9,4.17717493]
[1747600786135,10.442,2394.1,2393.9,4.17725928]
[1747600786338,0.8328,2394.8,2393.9,1.46282593]
[1747600786509,14.6179176,2394.7,2393.9,1.46282593]
[1747600786714,0.8328,2395.1,2394.0,0.7781]
[1747600786926,4.17547063,2395.0,2394.3,4.17650346]
[1747600787137,4.17517805,2395.2,2394.5,4.17623721]
[1747600787331,14.61632014,2395.1,2394.5,4.17609592]
[1747600787623,14.61619409,2395.1,2394.5,4.17607523]
[1747600787819,14.61619409,2395.1,2394.6,4.17606059]
[1747600788302,10.441,2395.1,2394.4,14.62735654]
[1747600788644,14.61627284,2395.1,2394.6,4.17596969]
[1747600788850,10.441,2395.1,2394.6,4.17596969]
[1747600789034,10.441,2395.1,2394.6,4.17597451]
[1747600789546,10.441,2395.1,2394.7,4.17583104]
[1747600789746,14.61621988,2395.1,2394.6,4.17601621]
[1747600789918,10.441,2395.1,2394.6,4.17601621]
[1747600790121,14.61621452,2395.1,2394.6,4.17601621]
[1747600790339,10.441,2395.1,2394.5,4.17623721]
[1747600790554,10.441,2395.1,2394.7,4.17579559]
[1747600790916,14.6162149,2395.1,2394.6,4.1759686]
[1747600791756,14.6162149,2395.1,2394.6,4.21772467]
[1747600791931,10.441,2395.1,2394.8,4.17565806]
[1747600792265,0.7777,2395.0,2393.9,19.8137]
[1747600792430,4.17710944,2394.0,2393.9,19.8137]
[1747600792755,10.435,2394.0,2393.5,10.45]
[1747600793119,4.17745372,2393.9,2393.5,10.45]
[1747600793515,0.0443033,2393.8,2393.4,0.66695712]
[1747600793747,4.17798203,2393.5,2393.4,0.66695712]
[1747600793921,10.433,2393.5,2393.4,0.66695712]
[1747600794314,4.17798203,2393.5,2393.4,0.66695712]
[1747600794745,4.95568203,2393.5,2393.4,0.66695712]
[1747600795122,4.95568203,2393.5,2393.0,10.449]
[1747600795123,4.1786582,2393.2,2393.0,10.449]
[1747600795534,0.7777,2393.5,2393.0,10.449]
[1747600795916,4.17868037,2393.1,2393.0,10.449]
[1747600796120,10.433,2393.3,2393.0,10.449]
[1747600796356,4.17900712,2393.0,2392.6,10.451]
[1747600796522,4.17932717,2392.8,2392.4,18.034]
[1747600796721,10.433,2392.8,2392.4,18.034]
[1747600797339,14.61233819,2392.8,2392.4,18.034]
[1747600797545,4.17876959,2393.1,2392.6,4.17954965]
[1747600797722,26.037,2393.8,2392.6,4.17954965]
[1747600797723,4.17763295,2393.7,2393.0,4.17882701]
[1747600798055,0.7777,2393.8,2393.3,4.17826409]
[1747600798240,0.7777,2393.8,2392.8,0.8251]
[1747600798241,10.431,2393.7,2393.2,10.451]
[1747600798442,0.7777,2393.8,2393.2,10.451]
[1747600798649,15.38617269,2393.8,2393.2,10.451]
[1747600798830,4.17764086,2393.7,2393.2,10.451]
[1747600799230,10.431,2393.6,2393.2,10.451]
[1747600799642,4.1780757,2393.5,2393.2,10.451]
[1747600799879,10.431,2393.6,2392.7,10.451]
[1747600799880,14.60893027,2393.6,2392.7,10.451]
[1747600800164,11.2287,2393.8,2392.7,10.451]
[1747600800165,4.95529986,2393.8,2392.7,10.451]
[1747600800338,4.17833117,2393.3,2392.2,20.6388]
[1747600800529,4.17833117,2393.3,2392.2,19.8137]
[1747600800530,4.17920427,2392.8,2392.2,19.8137]
[1747600800730,10.4753033,2392.7,2391.9,18.038]
[1747600800969,0.7777,2392.8,2392.0,4.18051699]
[1747600801168,0.7777,2392.8,2391.9,20.8869]
[1747600801169,14.6096705,2392.6,2391.9,25.06760818]
[1747600801355,0.7777,2392.1,2391.3,30.2647]
[1747600801559,0.31883167,2393.1,2391.4,0.86691292]
[1747600801742,7.34369669,2392.9,2391.5,10.451]
[1747600801941,7.34369669,2392.9,2391.6,0.34904775]
[1747600801942,4.18016441,2392.3,2391.6,0.34904775]
[1747600802161,4.18025807,2392.2,2391.6,4.53026298]
[1747600802361,6.06,2392.1,2391.6,2.34782713]
[1747600802664,4.18066569,2392.0,2391.6,2.34782713]
[1747600802863,6.06,2392.0,2391.6,2.34782713]
[1747600803175,4.18062818,2392.0,2391.6,0.34904775]
[1747600803327,16.491,2392.1,2391.6,0.34904775]
[1747600803531,16.491,2392.1,2391.7,4.18112126]
[1747600803758,20.67144159,2392.1,2391.8,0.34901856]
[1747600804014,4.18077678,2391.9,2391.8,0.34901856]
[1747600804162,10.24077678,2391.9,2391.8,0.34901856]
[1747600804493,10.24077678,2391.9,2391.2,18.038]
[1747600804494,4.18122329,2391.7,2391.2,18.038]
[1747600804707,4.18114315,2391.7,2391.2,18.38710614]
[1747600804886,10.2408028,2391.9,2391.3,0.34909154]
[1747600805186,10.432,2391.6,2391.3,0.34909154]
[1747600805389,4.18165091,2391.4,2391.3,0.34909154]
[1747600805805,4.95935091,2391.4,2391.3,0.34909154]
[1747600806370,15.39335091,2391.4,2391.3,0.34909154]
[1747600806570,15.39035091,2391.4,2391.3,0.34909154]
[1747600807109,22.07080491,2391.4,2391.3,0.34909154]
[1747600807409,31.49929091,2391.4,2391.3,0.23676902]
[1747600807599,0.7777,2390.7,2390.0,10.434]
[1747600807894,14.61410357,2390.6,2390.1,5.22730156]
[1747600808195,10.43,2390.7,2390.2,4.18366155]
[1747600808407,10.43,2390.7,2390.4,4.1833367]
[1747600808576,4.18217556,2391.1,2390.5,10.437]
[1747600808778,4.18246198,2391.0,2390.5,14.62020625]
[1747600809005,4.18246198,2391.0,2390.5,16.58309335]
[1747600809201,4.18281744,2390.8,2390.5,10.437]
[1747600809403,4.18288334,2390.7,2390.5,10.437]
[1747600809601,4.18278806,2390.8,2390.5,10.437]
[1747600809779,4.18302357,2390.7,2390.5,10.437]
[1747600809983,10.432,2390.7,2390.3,15.44555178]
[1747600810277,0.7991,2391.1,2390.3,15.44555178]
[1747600810278,4.98127979,2391.1,2390.4,4.18338956]
[1747600810483,14.61451083,2391.0,2390.4,4.18331348]
[1747600810668,4.00647897,2392.9,2390.3,13.3293852]
[1747600810669,0.7991,2391.7,2390.3,13.3293852]
[1747600810876,4.18192418,2391.3,2390.7,4.18278628]
[1747600811183,10.431,2391.6,2390.3,17.51287612]
[1747600811184,25.37022374,2391.6,2390.4,4.18339227]
[1747600811508,4.18147606,2391.5,2390.3,0.8251]
[1747600811809,4.18304125,2390.7,2390.3,0.8251]
[1747600811974,14.61604125,2390.7,2390.3,0.8251]
[1747600812367,10.433,2390.7,2390.3,0.8251]
[1747600812597,10.433,2390.7,2390.3,5.00856857]
[1747600812771,10.24305028,2390.6,2389.9,0.8057]
[1747600812972,4.18322526,2390.5,2390.0,10.439]
[1747600813173,18.69326495,2390.6,2390.0,10.439]
[1747600813413,4.18350425,2390.4,2390.0,10.439]
[1747600813630,4.18360658,2390.3,2390.0,10.439]
[1747600814127,4.18462568,2389.7,2389.6,19.8137]
[1747600814273,4.18497593,2389.5,2388.5,0.7567]
[1747600814475,4.18550142,2389.2,2388.1,0.7567]
[1747600814672,10.431,2389.1,2388.3,4.18698808]
[1747600814874,4.18627867,2388.8,2388.4,0.48539452]
[1747600815075,10.431,2389.1,2388.3,14.62806904]
[1747600815076,4.1860746,2388.9,2388.3,14.62806904]
[1747600815275,4.18652085,2388.7,2388.3,10.441]
[1747600815527,4.18612314,2388.9,2388.3,14.62806268]
[1747600815804,4.18682318,2388.5,2388.1,11.1977]
[1747600816112,4.18691017,2388.4,2388.1,11.1977]
[1747600816404,4.18714653,2388.3,2387.7,31.0114]
[1747600816608,4.18714653,2388.3,2387.8,0.51734351]
[1747600816769,14.61774252,2388.5,2387.9,4.18778005]
[1747600816973,0.8026,2388.8,2387.8,0.51734351]
[1747600817171,10.435,2388.7,2387.7,0.7567]
[1747600817390,4.18674291,2388.5,2387.9,4.18775991]
[1747600817587,4.18672881,2388.5,2387.7,0.7567]
[1747600817819,10.435,2388.7,2387.5,10.445]
[1747600818020,10.435,2388.7,2387.3,18.8147]
[1747600818021,0.8026,2388.4,2387.3,0.7567]
[1747600818175,4.18828786,2387.7,2387.3,0.7567]
[1747600818376,10.434,2387.6,2387.3,0.7567]
[1747600818751,10.434,2387.6,2387.2,10.445]
[1747600819040,14.62233423,2387.6,2387.2,10.445]
[1747600819190,10.434,2387.6,2386.9,15.39119423]
[1747600819385,14.62235572,2387.6,2387.0,4.18929629]
[1747600819622,0.8026,2388.4,2387.2,4.18884332]
[1747600819821,4.18788467,2387.9,2387.3,4.18874085]
[1747600820130,4.18813083,2387.7,2386.9,12.74081942]
[1747600820423,4.18894552,2387.3,2386.9,10.449]
[1747600820591,4.18857235,2387.5,2386.9,4.18940568]
[1747600820791,10.433,2387.2,2386.8,4.18964004]
[1747600821021,10.433,2387.2,2387.0,4.18925787]
[1747600821234,10.436,2387.2,2387.0,4.18919007]
[1747600821795,4.99723435,2387.7,2386.6,23.05421523]
[1747600821796,4.99723435,2387.7,2386.9,4.18945087]
[1747600822023,4.18857965,2387.5,2386.9,4.18943866]
[1747600822227,4.18866168,2387.4,2386.6,18.8642]
[1747600822525,10.436,2387.6,2386.7,10.449]
[1747600822526,14.62444517,2387.6,2386.7,10.449]
[1747600822723,14.62444517,2387.6,2386.6,22.161996]
[1747600822724,0.8091,2387.7,2386.6,0.7992]
[1747600822924,4.18889123,2387.3,2386.6,0.7992]
[1747600823101,10.435,2387.2,2386.7,4.18985335]
[1747600823431,26.23997109,2388.1,2386.6,0.7992]
[1747600823727,10.435,2388.0,2386.8,10.452]
[1747600824030,4.18857722,2387.5,2386.9,5.6536163]
[1747600824228,11.2177,2387.4,2386.6,0.7992]
[1747600824419,10.437,2387.3,2386.6,0.7992]
[1747600824616,4.18926578,2387.1,2386.6,0.7992]
[1747600825132,10.437,2387.0,2386.6,4.9892579]
[1747600825333,14.62636184,2387.0,2386.6,0.7992]
[1747600825807,10.437,2387.0,2386.6,0.7992]
[1747600826007,4.18957357,2386.9,2386.6,0.7992]
[1747600826234,10.437,2387.0,2386.6,0.7992]
[1747600826432,10.437,2387.0,2386.6,4.98923256]
[1747600826603,10.437,2387.0,2386.6,0.7992]
[1747600826809,10.437,2387.0,2386.6,4.98922276]
[1747600827535,10.437,2387.0,2386.6,0.7992]
[1747600827724,14.62635975,2387.0,2386.6,0.7992]
[1747600827903,10.437,2387.0,2386.6,4.98925441]
[1747600828531,4.18919151,2387.1,2386.6,4.98925441]
[1747600828733,3.01777063,2392.6,2386.7,0.55]
[1747600828734,0.7807,2388.1,2386.7,0.55]
[1747600828934,4.18803986,2387.8,2387.3,4.18881816]
[1747600829231,6.06,2387.9,2387.0,10.456]
[1747600829431,4.18836347,2387.6,2387.1,4.18916509]
[1747600829620,10.436,2387.5,2387.1,4.18916509]
[1747600830330,14.62450311,2387.5,2387.0,17.57791279]
[1747600830633,10.437,2387.4,2387.0,10.456]
[1747600831013,4.18892957,2387.3,2386.8,0.7887]
[1747600831209,11.2315,2387.4,2386.5,4.97634819]
[1747600831538,11.2315,2387.4,2386.7,4.18980138]
[1747600831539,4.18888335,2387.3,2386.7,4.18980138]
[1747600832128,15.42018003,2387.4,2386.5,4.97637107]
[1747600832129,4.18902743,2387.2,2386.6,4.18999288]
[1747600832305,4.18926255,2387.1,2386.5,4.97637608]
[1747600832503,5.166416,2387.3,2386.5,0.7862]
[1747600832802,0.7945,2386.8,2386.0,10.437]
[1747600833005,9.35669293,2386.5,2385.9,20.5999]
[1747600833200,4.19048156,2386.4,2385.9,20.5999]
[1747600833405,4.98427564,2386.8,2385.9,20.5999]
[1747600833615,14.62596784,2386.7,2386.2,4.19067284]
[1747600833905,10.435,2386.6,2386.1,14.62784925]
[1747600834131,8.0,2386.9,2386.0,4.19098738]
[1747600834408,14.62484259,2386.8,2385.9,0.7862]
[1747600834723,4.19017298,2386.6,2386.1,4.19091313]
[1747600834930,10.436,2386.5,2386.2,0.41909131]
[1747600835239,25.2925,2387.2,2386.5,4.19015074]
[1747600835240,11.04356317,2387.2,2386.5,4.19015074]
[1747600835439,10.436,2386.8,2386.4,5.00931537]
[1747600835603,10.436,2386.8,2386.4,0.819]
[1747600835810,10.435,2387.0,2386.6,4.18997281]
[1747600836130,14.62438283,2387.0,2386.5,4.19014488]
[1747600836531,10.435,2387.0,2386.4,0.819]
[1747600836839,4.18972634,2386.8,2386.4,0.819]
[1747600837042,10.435,2387.0,2386.4,0.819]
[1747600837238,9.35565305,2387.1,2386.6,4.19003302]
[1747600837441,10.24907069,2387.2,2386.6,0.5009033]
[1747600837442,6.06,2387.2,2386.6,0.5009033]
[1747600837630,10.434,2387.6,2387.2,4.18887099]
[1747600837941,14.62133188,2388.2,2387.7,4.18809283]
[1747600838105,10.434,2388.2,2387.5,10.439]
[1747600838309,4.18778635,2387.9,2387.5,10.439]
[1747600838506,4.18848167,2387.5,2387.4,11.258]
[1747600838748,10.434,2387.6,2387.4,10.439]
[1747600838942,14.6223475,2387.6,2387.1,22.27906924]
[1747600839314,10.433,2387.5,2387.3,4.18874669]
[1747600839536,10.433,2387.5,2387.1,21.86263057]
[1747600839732,10.433,2387.5,2387.2,4.18887306]
[1747600839936,10.433,2387.6,2387.3,4.18883257]
[1747600840138,10.433,2387.6,2387.2,4.18900804]
[1747600840326,10.433,2387.6,2387.2,7.9199719]
[1747600840523,4.18848167,2387.5,2387.1,18.09]
[1747600841048,14.61969358,2388.0,2387.2,0.04188701]
[1747600841257,14.61969358,2388.0,2387.5,4.18845509]
[1747600841258,10.432,2388.0,2387.5,4.18845509]
[1747600841443,14.61969883,2388.0,2387.5,4.18845509]
[1747600841647,4.18780206,2387.9,2387.4,4.18856941]
[1747600841965,4.18780206,2387.9,2387.2,10.438]
[1747600841966,10.431,2387.8,2387.2,10.438]
[1747600842171,10.43,2387.9,2387.7,0.8233]
[1747600842458,10.43,2388.0,2387.8,4.18784912]
[1747600842640,10.43,2388.1,2387.8,4.18784912]
[1747600842846,9.35317146,2388.5,2387.8,4.1878863]
[1747600843056,10.43,2388.2,2387.9,4.18763148]
[1747600843519,4.18681936,2388.5,2388.0,4.1875454]
[1747600843719,10.429,2388.4,2387.8,1.96372886]
[1747600843949,4.18754812,2388.1,2387.7,11.2613]
[1747600844135,4.18719493,2388.3,2387.7,11.2613]
[1747600844537,4.18752044,2388.1,2387.7,11.2613]
[1747600845057,6.06,2388.8,2387.9,4.18778005]
[1747600845258,10.426,2389.5,2388.7,0.8255]
[1747600845461,10.426,2389.5,2389.0,4.18585143]
[1747600845754,20.671025,2389.5,2389.0,4.18585143]
[1747600845953,4.18517699,2389.4,2388.9,4.18596192]
[1747600846164,9.25465795,2389.7,2388.8,10.437]
[1747600846165,0.8045,2390.1,2389.4,4.18502226]
[1747600846374,10.425,2390.0,2389.3,10.437]
[1747600846664,4.98853513,2390.1,2389.5,4.18496347]
[1747600846867,4.98787257,2390.5,2389.8,4.18434748]
[1747600847026,1.25744331,2390.7,2390.0,4.18400955]
[1747600847027,10.422,2390.4,2390.0,4.18400955]
[1747600847223,10.422,2390.4,2389.7,0.8255]
[1747600847431,4.18420439,2390.0,2389.7,0.8255]
[1747600847667,10.421,2389.9,2389.7,0.8255]
[1747600848556,10.421,2389.9,2388.9,18.087]
[1747600848557,10.421,2389.9,2389.3,0.8255]
[1747600848782,4.18481827,2389.6,2389.3,11.2605]
[1747600848957,14.6053006,2389.9,2389.3,11.2605]
[1747600849134,4.18445058,2389.8,2389.3,11.2605]
[1747600849334,4.18480318,2389.6,2389.3,11.2605]
[1747600849565,14.6046396,2389.7,2389.3,11.2605]
[1747600849762,4.98820039,2390.3,2389.3,11.2605]
[1747600849966,4.18476194,2389.7,2389.3,11.2605]
[1747600850123,4.18476194,2389.7,2388.8,0.49225565]
[1747600850124,4.18497593,2389.5,2388.8,0.49225565]
[1747600850562,11.2177,2389.6,2388.8,0.49225565]
[1747600850865,4.18599893,2389.0,2388.8,0.49225565]
[1747600851160,14.60272441,2389.1,2388.8,0.49225565]
[1747600851842,0.7987,2389.6,2388.8,0.49225565]
[1747600852044,4.18581905,2389.1,2388.8,0.49225565]
[1747600852236,16.475,2389.1,2388.7,4.18626594]
[1747600852441,16.475,2389.1,2388.6,0.7788]
[1747600852658,20.6607978,2389.1,2388.6,0.7788]
[1747600852859,16.475,2389.1,2388.6,0.7788]
[1747600853080,4.18596337,2389.0,2388.6,0.7788]
[1747600853281,6.06,2389.1,2388.7,1.53985189]
[1747600853442,6.06,2389.1,2388.6,0.7788]
[1747600853641,10.24579432,2389.1,2388.7,10.432]
[1747600853882,4.18615478,2388.9,2388.6,0.7788]
[1747600854290,4.18585182,2389.0,2388.4,10.432]
[1747600854453,10.24576902,2389.1,2388.4,10.432]
[1747600854796,4.18633119,2388.8,2388.4,10.432]
[1747600855146,6.06,2389.1,2388.4,11.4752]
[1747600855342,14.59794331,2389.0,2388.4,15.66200937]
[1747600855574,4.18618745,2388.9,2388.4,10.432]
[1747600855885,14.59790781,2389.0,2388.4,10.432]
[1747600856060,4.18636212,2388.8,2388.4,10.432]
[1747600856281,4.18646449,2388.7,2388.4,10.432]
[1747600856459,4.186046,2388.9,2388.4,14.61874485]
[1747600856666,4.186046,2388.9,2388.5,4.18672807]
[1747600856667,10.41,2388.9,2388.5,4.18672807]
[1747600856982,4.18623292,2388.8,2388.4,10.432]
[1747600857491,4.18625848,2388.8,2388.4,10.432]
[1747600857687,6.06,2389.1,2388.4,10.432]
[1747600857986,4.18628565,2388.8,2388.4,10.432]
[1747600858396,4.18641097,2388.7,2388.4,10.432]
[1747600859102,4.18641097,2388.7,2110.0,2.0]
[1747600859103,6.06,2388.6,2387.8,0.7685]
[1747600859262,4.18795544,2387.8,2387.7,19.8137]
[1747600859461,10.408,2387.8,2387.7,19.8137]
[1747600859808,14.59595544,2387.8,2387.7,19.8137]
[1747600859965,14.59595544,2387.8,2387.3,10.432]
[1747600859966,10.407,2387.8,2387.3,10.432]
[1747600860155,14.59507285,2387.8,2387.3,10.432]
[1747600860349,12.99642094,2388.4,2387.3,12.05154809]
[1747600860565,0.7655,2389.1,2387.5,0.8054]
[1747600860792,10.75773844,2389.0,2387.8,0.8054]
[1747600861101,4.18639905,2388.7,2388.2,4.18725399]
[1747600861398,4.18741403,2388.2,2387.8,0.8054]
[1747600861600,8.35173844,2388.9,2387.8,3.37935916]
[1747600861754,14.59134514,2388.8,2387.9,0.04187095]
[1747600861953,14.59134514,2388.8,2388.1,4.18735477]
[1747600861954,14.59146865,2388.7,2388.1,4.18735477]
[1747600862189,4.18658175,2388.6,2388.1,4.18735477]
[1747600862489,10.405,2388.7,2387.8,0.8054]
[1747600862785,11.1695,2388.6,2387.9,4.18777374]
[1747600862983,11.1695,2388.6,2387.8,0.8054]
[1747600863163,4.1874352,2388.1,2387.8,0.8054]
[1747600863481,4.18699411,2388.4,2387.8,0.8054]
[1747600863681,10.404,2388.1,2387.8,4.99324988]
[1747600863886,4.18728043,2388.2,2387.8,0.8054]
[1747600864197,10.403,2388.3,2387.8,11.2104]
[1747600864360,0.7655,2388.6,2387.8,14.55814491]
[1747600864545,10.403,2388.3,2388.0,4.18747527]
[1747600864749,10.403,2388.3,2387.8,18.74604612]
[1747600864982,0.8206,2388.9,2387.8,14.55814491]
[1747600865182,14.51015795,2389.2,2388.4,0.55]
[1747600865384,14.51015795,2389.2,2389.1,4.18567661]
[1747600865591,6.06,2389.2,2389.0,0.7869]
[1747600865884,4.18604708,2388.9,2388.6,11.1919]
[1747600866187,6.06,2388.8,2388.2,11.1919]
[1747600866353,6.06,2388.8,2388.4,4.18680198]
[1747600866354,16.462,2388.8,2388.4,4.18680198]
[1747600866695,16.462,2388.8,2388.3,3.10056]
[1747600866696,16.462,2388.8,2388.6,4.18641253]
[1747600866852,6.06,2388.8,2388.6,4.18641253]
[1747600868471,6.06,2388.8,2388.2,0.7869]
[1747600868883,16.459,2388.8,2388.6,4.18644295]
[1747600869055,16.459,2388.8,2388.7,4.18637752]
[1747600869251,16.459,2388.8,2388.5,14.59170146]
[1747600869487,16.459,2388.8,2388.6,4.18646443]
[1747600869792,6.06,2388.8,2388.7,4.94277752]
[1747600870196,6.06,2388.8,2388.7,0.7564]
[1747600870489,6.06,2388.8,2388.6,14.59145006]
[1747600870874,14.51015795,2389.0,2388.9,4.18602704]
[1747600871177,8.45015795,2389.0,2388.9,4.18602704]
[1747600871376,14.51015795,2389.0,2388.9,5.49242704]
[1747600871578,16.456,2390.3,2389.3,0.7564]
[1747600871754,6.06,2390.3,2390.2,4.18375031]
[1747600871960,4.18401477,2390.1,2389.5,14.58886223]
[1747600872174,4.18371917,2390.3,2389.5,14.58886223]
[1747600872175,0.8197,2390.3,2389.5,10.404]
[1747600872492,0.8197,2390.3,2389.6,4.1848008]
[1747600872691,6.8797,2390.3,2389.8,4.18434707]
[1747600872888,6.06,2390.3,2389.6,4.1848008]
[1747600873056,6.06,2390.3,2390.2,4.18375031]
[1747600873255,6.06,2390.3,2390.1,4.18389811]
[1747600873256,10.393,2390.5,2390.3,4.18356012]
[1747600873783,10.393,2390.5,2390.2,4.18367514]
[1747600874185,10.393,2390.5,2390.3,4.18356785]
[1747600874493,10.393,2390.5,2390.0,11.1604]
[1747600874494,10.39,2390.7,2390.4,4.18331548]
[1747600874800,6.06,2390.8,2390.7,4.1828753]
[1747600874983,10.389,2391.6,2391.1,4.18206449]
[1747600875379,4.18147606,2391.5,2391.0,10.402]
[1747600875593,4.18187057,2391.3,2391.0,10.402]
[1747600875792,10.389,2391.6,2390.9,10.402]
[1747600875793,4.18200281,2391.2,2390.9,10.402]
[1747600876293,4.18191246,2391.3,2390.9,10.402]
[1747600876688,4.18217556,2391.1,2390.4,10.402]
[1747600876894,14.56935048,2391.0,2390.4,14.58534666]
[1747600877094,14.56935048,2391.0,2390.5,4.18320375]
[1747600877697,14.56943536,2391.0,2390.4,14.5853277]
[1747600877863,6.06,2391.1,2390.4,12.36078464]
[1747600878085,3.9347217,2392.4,2392.1,4.18033854]
[1747600878395,6.22855571,2392.7,2391.9,10.399]